[Event "34th Pula Open 2022"]
[Site "Pula"]
[Date "2022.06.24"]
[Round "8.4"]
[White "Pastar, Slaven"]
[Black "Hadzovic, Amir"]
[Result "1-0"]
[ECO "A41"]
[WhiteElo "2300"]
[BlackElo "2270"]
[Annotator "TA"]
[PlyCount "109"]
[EventDate "2022.06.18"]
[EventType "swiss"]
[EventCountry "CRO"]
[SourceTitle "playchess.com"]
[Source "ChessBase"]
[SourceQuality "1"]
[TimeControl "5400+30"]

{[%evp 11,109,31,40,31,50,39,41,41,66,64,66,73,67,81,61,-63,-8,-15,-26,-43,-47,-57,-27,-47,-20,-72,-63,-74,0,0,0,0,44,52,410,375,404,392,368,341,329,260,275,243,218,241,264,263,226,248,374,355,543,538,670,670,1037,1029,2060,1187,29986,6315,5639,673,659,652,614,520,862,847,786,670,720,696,685,619,1114,1101,29966,6119,29974,29975,29975,29976,29975,29976,29976,29977,29977,29975,29979,29980,29980,29981,29981,29982,29981,29982,29982,29982]} 1. Nf3 {[%emt 0:00:04]} Nc6 {[%emt 0:00:58]} 2. d4 {[%emt 0:00:39]} d6 {[%emt 0:00:11]} 3. d5 {[%emt 0:02:33]} Ne5 {[%emt 0:00:20]} 4. Nxe5 {[%emt 0:02:22]} dxe5 {[%emt 0:00:06]} 5. e4 {[%emt 0:01:26]} Nf6 {[%emt 0:00:23]} 6. Bb5+ {[%emt 0:01:24]} Bd7 {[%emt 0:00:08]} 7. Qe2 {[%emt 0:00:45] A41: 1 d4 d6: Tartakower System and Modern Defence.} a6 {[%emt 0:00:38]} 8. Bc4 {[%emt 0:00:47]} b5 {[%emt 0:12:34]} 9. Bb3 {[%emt 0:00:25] White is slightly better.} c5 {[%emt 0:03:11]} 10. c4 $1 {[%emt 0:04:18] [#]} e6 $146 {[%emt 0:18:40]} ({Predecessor:} 10... b4 11. O-O e6 12. Nd2 Bd6 13. f4 Qc7 14. Nf3 O-O 15. fxe5 Bxe5 16. Bg5 exd5 17. exd5 {½-½ (23) Tuchenhagen,A (2076)-Gnegel,B (1989) Bayern 2013}) 11. O-O {[%emt 0:18:24]} exd5 {[%emt 0:09:27]} 12. exd5 {[%emt 0:02:11]} Bd6 {[%emt 0:03:24]} 13. f4 {[%emt 0:03:20]} (13. Bg5 $14) 13... Bg4 {[%emt 0:10:09]} (13... O-O $1 $15) 14. Qf2 {[%emt 0:10:40] Hoping for fxe5.} O-O $36 {[%emt 0:05:03][%mdl 2048] White is under pressure.} 15. f5 {[%emt 0:01:21]} e4 $1 {[%emt 0:01:32]} 16. Nc3 {[%emt 0:09:32]} Re8 $1 {[%emt 0:05:40] And now ...Qb8 would win.} 17. Be3 {[%emt 0:04:07]} Re5 {[%emt 0:03:53]} 18. Qh4 {[%emt 0:10:05]} (18. Bf4 $11) 18... b4 $17 {[%emt 0:07:18]} (18... Rxf5 19. Bg5 $11) 19. Na4 {[%emt 0:01:15][%cal Bc3a4,Ba4c5,Bc5e4,Be4g5,Bg5f3,Bf3d4,Bd4f5][%mdl 32]} Rxf5 {[%emt 0:00:21]} (19... Qe7 $17) 20. Rxf5 $11 {[%emt 0:10:40]} ({Wrong is} 20. Bxc5 $2 Rh5 21. Bf2 e3 $19) 20... Bxf5 {[%emt 0:00:04]} 21. Rf1 $1 {[%emt 0:05:26]} Bd7 {[%emt 0:11:04]} 22. Nxc5 {[%emt 0:02:21] Black must now prevent Nb7.} Qb6 {[%emt 0:03:46][%mdl 8192] Inhibits Nb7. This move loses the game for Black.} ({Black should play} 22... Ng4 $14 23. Qxd8+ Rxd8) 23. Rxf6 $18 {[%emt 0:04:22]} ({Less strong is} 23. Qf2 Bxh2+ 24. Kh1 Qd6 $18) 23... gxf6 {[%emt 0:00:20]} 24. Qf2 {[%emt 0:00:26]} Qd8 {[%emt 0:02:14]} (24... Bxc5 $2 25. Bxc5 Qd8 26. Bd4) 25. Nxe4 {[%emt 0:00:51]} Be5 {[%emt 0:00:05]} 26. c5 {[%emt 0:01:49][%cal Bc4c5,Bc5c6][%mdl 32]} f5 {[%emt 0:00:45]} 27. Ng5 {[%emt 0:01:24]} Qf6 {[%emt 0:00:12] Strongly threatening ...f4.} 28. Nf3 $1 {[%emt 0:00:25]} Bxb2 {[%emt 0:01:07]} 29. c6 {[%emt 0:00:11]} Be8 {[%emt 0:00:19]} 30. g3 {[%emt 0:01:10]} Bc3 {[%emt 0:00:56]} (30... a5 {was necessary.} 31. Qc2 Be5) 31. Nd4 {[%emt 0:00:20]} Rc8 {[%emt 0:00:23]} (31... f4 $142 32. Qxf4 (32. gxf4 Rd8 $16) 32... Qxf4 33. gxf4 Bxd4 34. Bxd4 Rc8) 32. Nxf5 {[%emt 0:00:13]} Bxc6 {[%emt 0:00:40]} 33. dxc6 {[%emt 0:00:19]} Rxc6 {[%emt 0:00:08]} 34. Qf3 {[%emt 0:00:54]} Kf8 {[%emt 0:00:59]} 35. Bh6+ {[%emt 0:00:41]} Ke8 {[%emt 0:00:27] [#]} 36. Ba4 {[%emt 0:00:11]} (36. Bg5 $142 $1 {[%mdl 512]} Qg6 37. Qd5 Qxg5 38. Qxc6+ Kd8 39. Qa8+ Kd7 40. Qb7+ Kd8 41. Qb8+ Kd7 42. Ba4+ Ke6 43. Qd6+ Kxf5 44. Bc2+ Kg4 45. Qd1+ Kh3 46. Qf1+ Kg4 47. Bd1#) 36... Kd7 {[%emt 0:00:18]} 37. Bg7 {[%emt 0:00:44] This bishop pair is nice.} (37. Qd5+ $142 Kc7 {[#]} 38. Bg5 $1 {[%mdl 512]}) 37... Qe6 {[%emt 0:00:28]} 38. Bxc3 {[%emt 0:00:26]} bxc3 {[%emt 0:00:06]} 39. Qxc3 {[%emt 0:00:52] Nd4 is the strong threat.} Qxf5 {[%emt 0:01:09]} (39... Kc7 $142 40. Bxc6 Qxc6 41. Qe5+ Kb6) 40. Qxc6+ {[%emt 0:00:03]} Ke7 {[%emt 0:00:07]} 41. Bc2 {[%emt 0:00:29]} Qa5 {[%emt 0:00:22]} 42. Qe4+ {[%emt 0:00:10]} Kf8 {[%emt 0:00:11]} 43. Bb3 {[%emt 0:00:52]} Qc5+ {[%emt 0:00:37]} 44. Kg2 {[%emt 0:00:05]} a5 {[%emt 0:00:07]} 45. Qd5 {[%emt 0:00:46]} (45. a4 $142 h6 46. Qf3 Qc7 47. Qa8+ Kg7 48. Qd5 Kg6 49. Bc4 Kg7 50. Kh3) 45... Qc7 {[%emt 0:00:06]} 46. a4 {[%emt 0:00:34] White mates.} Kg7 {[%emt 0:00:08] [#]} 47. Qxf7+ $1 {[%emt 0:00:32]} Qxf7 {[%emt 0:00:04]} 48. Bxf7 {[%emt 0:00:03]} Kxf7 {[%emt 0:00:07] K3P-KPP} 49. Kf3 {[%emt 0:00:02]} Kf6 {[%emt 0:00:09]} 50. Kf4 {[%emt 0:00:08]} h6 {[%emt 0:02:24]} 51. g4 {[%emt 0:01:50]} Kg6 {[%emt 0:00:09]} 52. h4 {[%emt 0:00:38]} Kf6 {[%emt 0:01:22]} 53. Ke4 {[%emt 0:00:06]} Ke6 {[%emt 0:00:18]} 54. Kd4 {[%emt 0:00:03]} Kf6 {[%emt 0:00:23]} 55. Kd5 {[%emt 0:00:12] Weighted Error Value: White=0.32/Black=0.88} 1-0

[Event "34th Pula Open 2022"]
[Site "Pula"]
[Date "2022.06.24"]
[Round "8.5"]
[White "De Vleeschauwer, Maarten"]
[Black "Lim, Zhuo Ren"]
[Result "0-1"]
[ECO "B31"]
[WhiteElo "2255"]
[BlackElo "2290"]
[Annotator "TA"]
[PlyCount "141"]
[EventDate "2022.06.18"]
[EventType "swiss"]
[EventCountry "CRO"]
[SourceTitle "playchess.com"]
[Source "ChessBase"]
[SourceQuality "1"]
[TimeControl "5400+30"]

{[%evp 10,141,22,5,4,2,18,-17,-6,-16,-12,-20,-19,-21,-22,-20,-9,-14,-10,-41,-31,-31,-33,-27,-32,-49,-49,-49,-60,-66,-64,-70,-57,-80,-65,-70,-60,-160,-146,-203,-164,-243,-226,-251,-249,-283,-235,-230,-229,-268,-263,-306,-296,-279,-208,-323,-286,-429,-427,-410,-388,-413,-247,-215,-283,-309,-305,-288,-309,-219,-219,-420,-212,-346,-279,-279,-212,-1301,-1327,-1166,-970,-1889,-1896,-1402,-1322,-2795,-2025,-7449,-7449,-8070,-7732,-7014,-6208,-5764,-6111,-5622,-5269,-3638,-2634,-2614,-1937,-5087,-3704,-29943,-29953,-29947,-5106,-29955,-29958,-29967,-29968,-29968,-29969,-29969,-61,-61,-61,-61,-9,-29976,-29977,-29979,-29980,-29979,0,-29979,-29980,-29978,-29980,-29980,-29982,-29986,-29987,-29996]} 1. e4 {[%emt 0:00:04]} c5 {[%emt 0:00:09]} 2. Nc3 {[%emt 0:00:32]} Nc6 {[%emt 0:00:22]} 3. Bb5 {[%emt 0:00:01]} Nd4 {[%emt 0:00:20]} 4. Nf3 {[%emt 0:00:10]} g6 {[%emt 0:00:52]} 5. O-O {[%emt 0:07:25]} Bg7 {[%emt 0:00:50]} 6. Re1 {[%emt 0:07:44]} a6 {[%emt 0:00:42] B31: Sicilian: 2...Nc6 3 Bb5 g6.} 7. Bf1 {[%emt 0:00:19]} d6 {[%emt 0:00:37]} 8. h3 {[%emt 0:02:16]} Nf6 {[%emt 0:00:49] The position is equal.} 9. d3 {[%emt 0:10:51] [#]} O-O $146 {[%emt 0:01:38]} ({Predecessor:} 9... Nxf3+ 10. Qxf3 O-O 11. Bg5 h6 12. Bd2 e5 13. a4 b6 14. Rab1 Be6 15. b4 Rc8 16. bxc5 Rxc5 {0-1 (32) Woolley,J (2099)-Sherwin,J (2246) Halifax 2010}) 10. Be3 {[%emt 0:00:30]} e5 {[%emt 0:02:59]} 11. Bg5 {[%emt 0:08:39]} h6 {[%emt 0:00:30][%cal Bh7h6,Bh6h5,Bh5h4][%mdl 32]} 12. Bxf6 {[%emt 0:00:14]} Bxf6 {[%emt 0:00:30]} 13. Nd5 {[%emt 0:01:54]} Be6 {[%emt 0:01:34]} 14. c4 {[%emt 0:10:51]} Nxf3+ {[%emt 0:10:48]} 15. Qxf3 {[%emt 0:00:09]} Bxd5 {[%emt 0:00:17]} 16. cxd5 {[%emt 0:00:45]} h5 {[%emt 0:01:30]} 17. g3 {[%emt 0:04:01]} h4 {[%emt 0:00:42]} 18. Be2 {[%emt 0:07:10]} Kg7 {[%emt 0:00:27]} 19. Rab1 {[%emt 0:02:50]} b5 {[%emt 0:02:05]} 20. a3 {[%emt 0:03:03]} Bg5 {[%emt 0:02:05][%cal Bf6g5,Bg5f4,Bf4e5][%mdl 32]} 21. b4 {[%emt 0:09:35]} cxb4 {[%emt 0:01:18]} 22. axb4 {[%emt 0:00:19]} Rc8 {[%emt 0:00:32]} 23. d4 {[%emt 0:04:16]} (23. Kg2 $15) 23... hxg3 $17 {[%emt 0:00:36]} 24. Qxg3 {[%emt 0:06:40]} (24. fxg3 $17 exd4 25. Bd3) 24... Bf4 {[%emt 0:02:33]} 25. Qg2 {[%emt 0:03:31]} (25. Qf3 $142) 25... exd4 $19 {[%emt 0:00:30]} 26. Red1 {[%emt 0:00:30]} Be5 {[%emt 0:00:30]} 27. Rf1 {[%emt 0:00:30]} d3 {[%emt 0:04:31]} 28. Bxd3 {[%emt 0:03:23]} Rc3 {[%emt 0:00:10]} 29. Rbd1 {[%emt 0:00:45]} Qf6 {[%emt 0:01:33]} 30. f4 {[%emt 0:02:24]} Bxf4 {[%emt 0:01:38]} 31. Rf3 {[%emt 0:00:29]} Qd4+ {[%emt 0:04:54]} 32. Kh1 {[%emt 0:00:07]} (32. Qf2 {was the only chance.} Qxf2+ 33. Kxf2) 32... Be5 {[%emt 0:00:25]} 33. Qf2 {[%emt 0:03:49]} (33. Qg4 $142) 33... Qxf2 {[%emt 0:01:31]} (33... Qxb4 $2 34. Rf1 f6 35. Qg2 $19) 34. Rxf2 {[%emt 0:00:05]} Rfc8 {[%emt 0:00:13]} 35. Ra2 {[%emt 0:00:18]} Rc1 {[%emt 0:00:34]} (35... Rb3 $142 36. Rxa6 Rxb4) 36. Rxc1 {[%emt 0:00:22]} Rxc1+ {[%emt 0:00:02][%mdl 4096] Endgame KRB-KRB} 37. Kg2 {[%emt 0:00:11]} Ra1 {[%emt 0:00:21]} ({Don't go for} 37... Rc3 $2 38. Bf1 $19) 38. Rxa1 {[%emt 0:00:46]} Bxa1 {[%emt 0:00:55] KB-KB} 39. Be2 {[%emt 0:01:29]} f5 {[%emt 0:02:52] Prevents Bg4.} 40. h4 $2 {[%emt 0:01:00]} (40. exf5 {was worth a try.} gxf5 41. h4) 40... Bc3 {[%emt 0:00:00]} (40... fxe4 $142 {Threatens to win with ...Kf6.} 41. Bg4 Bc3) 41. Kf3 (41. exf5 {is the only way for White.} gxf5 42. Bd3) 41... Kf6 {[%emt 0:00:00]} 42. exf5 {[%emt 0:01:01]} gxf5 {[%emt 0:00:00]} 43. Ke3 $2 {[%emt 0:00:30]} (43. h5) 43... Bxb4 {[%emt 0:00:21]} 44. Kd4 {[%emt 0:00:23]} Bc5+ {[%emt 0:02:13]} 45. Kd3 Bf2 {[%emt 0:00:00]} 46. h5 {[%emt 0:00:33]} Kg5 {[%emt 0:00:00] [#] White must now prevent ...Bb6.} 47. Bd1 {[%emt 0:00:36]} Bg3 {[%emt 0:00:00] aiming for ...Be5.} 48. Ke3 {[%emt 0:00:12]} Be5 {[%emt 0:00:16]} 49. Be2 {[%emt 0:00:09]} Bg7 {[%emt 0:00:14] Strongly threatening ...Bf8.} 50. Bd1 {[%emt 0:00:06]} Bh6 {[%emt 0:00:10]} 51. Be2 {[%emt 0:00:29]} Bf8 {[%emt 0:01:26]} 52. Bd1 {[%emt 0:00:09]} Bg7 {[%emt 0:00:18]} 53. Be2 {[%emt 0:00:06]} Bh6 {[%emt 0:00:04]} 54. Bd1 {[%emt 0:01:11]} b4 {[%emt 0:00:11]} 55. Kd4 {[%emt 0:01:30]} Kf4 {[%emt 0:00:46] ...a5 is the strong threat.} 56. Kc4 {[%emt 0:01:13]} Ke3 {[%emt 0:00:25]} 57. Kxb4 {[%emt 0:00:00]} f4 {[%emt 0:00:17]} 58. Bg4 {[%emt 0:00:52]} Ke4 {[%emt 0:02:31]} 59. Be2 Kxd5 {[%emt 0:00:10]} 60. Bxa6 Kd4 {[%emt 0:00:57]} 61. Kb3 {[%emt 0:01:28]} d5 $2 {[%emt 0:00:53]} (61... f3 62. Kc2 Ke3 63. Bc4 f2 64. Bb5 Bg7 65. Bf1 d5 66. Kd1 Kf3 67. Kd2 Kg3 68. Ke3 d4+ 69. Ke2 Bf6 70. h6 Be5 71. Kd3 Kh2 72. h7 Kg1 73. Ke4 Bg7 74. Bb5 f1=Q 75. Bd7 d3 76. Bc6 d2 77. Ba4 Qc4+ 78. Kf5 Qxa4 79. h8=Q Bxh8 80. Kg5 d1=Q 81. Kg6 Qdg4+ 82. Kh6 Qg7+ 83. Kh5 Qag4#) 62. Kc2 $1 $15 {[%emt 0:00:14]} Ke3 {[%emt 0:00:53] ( -> ...f3)} 63. Kd1 $1 {[%emt 0:00:47]} Kf2 {[%emt 0:02:57]} (63... f3 $15 64. Kc2 d4) 64. Bc8 $2 {[%emt 0:00:32][%mdl 8192] [#]} (64. Bb7 $11) 64... f3 {[%emt 0:00:59]} 65. Bf5 {[%emt 0:00:25]} Kg1 {[%emt 0:02:25]} 66. Bh3 {[%emt 0:00:30]} Kf2 $2 {[%emt 0:00:41]} (66... Bg7 {mates} 67. Ke1 f2+ 68. Ke2 d4 69. h6 Be5 70. h7 Bh8 71. Kd2 f1=Q 72. Bxf1 Kxf1 73. Kd1 Kg2 74. Ke2 Kg3 75. Kf1 Kf4 76. Ke2 Kg3 77. Kd1 Kf3 78. Kd2 Ke4 79. Ke2 d3+ 80. Kf2 Bc3 81. Kf1 Kf3 82. h8=Q Bxh8 83. Ke1 Ke3 84. Kd1 d2 85. Kc2 Ke2 86. Kb3 d1=Q+ 87. Kc4 Qd6 88. Kb3 Kd3 89. Ka4 Kc4 90. Ka5 Bc3+ 91. Ka4 Qb4#) 67. Bg4 $2 {[%emt 0:00:56][%mdl 8192]} (67. Bf5 $11 Kg3 68. Bh7) 67... d4 {[%cal Bd5d4,Bd4d3][%mdl 32] Black mates.} 68. Bh3 {[%emt 0:01:10]} Bg5 {[%emt 0:00:47]} 69. Bf5 {[%emt 0:00:00]} Kg1 {[%emt 0:02:13]} 70. Bh3 {[%emt 0:01:10]} d3 {[%emt 0:01:00]} 71. Bf1 {[%emt 0:00:00] Weighted Error Value: White=0.87/Black=0.20 (precise)} 0-1

[Event "34th Pula Open 2022"]
[Site "Pula"]
[Date "2022.06.24"]
[Round "8.6"]
[White "Cupic, Lovro"]
[Black "Bochnicka, Vladimir"]
[Result "1-0"]
[ECO "C58"]
[WhiteElo "2271"]
[BlackElo "2267"]
[Annotator "TA"]
[PlyCount "51"]
[EventDate "2022.06.18"]
[EventType "swiss"]
[EventCountry "CRO"]
[SourceTitle "playchess.com"]
[Source "ChessBase"]
[SourceQuality "1"]
[TimeControl "5400+30"]

{[%evp 14,51,17,28,55,35,24,-9,-8,-69,-85,-75,-70,-16,302,323,365,161,403,389,527,520,630,653,623,599,680,608,616,597,815,786,802,782,768,763,850,792,1715,1423]} 1. e4 {[%emt 0:03:13]} e5 {[%emt 0:00:05]} 2. Nf3 {[%emt 0:00:29]} Nc6 {[%emt 0:00:05]} 3. Bc4 {[%emt 0:00:06]} Nf6 {[%emt 0:00:10]} 4. Ng5 {[%emt 0:00:40]} d5 {[%emt 0:00:14]} 5. exd5 {[%emt 0:00:05]} Na5 {[%emt 0:00:10]} 6. Bb5+ {[%emt 0:00:06]} c6 {[%emt 0:00:24]} 7. dxc6 {[%emt 0:00:06]} bxc6 {[%emt 0:00:06]} 8. Bd3 $1 {[%emt 0:00:06][%cal Bb5d3,Bd3e4,Be4c6][%mdl 4] is more profitable than 8.Be2 at the moment.} Ng4 {[%emt 0:01:19] C58: Two Knights: 4 Ng5 d5 5 exd5 Na5 sidelines.} 9. Nh3 {[%emt 0:00:55]} Bc5 {[%emt 0:01:06]} 10. Qf3 {[%emt 0:06:05]} f5 {[%emt 0:35:34] The position is equal.} 11. b4 {[%emt 0:00:17] [#]} ({White should play} 11. Qd1 $11) 11... e4 $1 $15 {[%emt 0:09:09]} 12. Bxe4 {[%emt 0:01:36] [#]} Bd4 $1 {[%emt 0:02:45] White must now prevent ...Ne5.} 13. bxa5 {[%emt 0:24:25] [#]} (13. c3 $15 Ne5 14. Qg3 fxe4 15. O-O) 13... O-O $146 {[%emt 0:09:47][%mdl 8192] Black cannot hold the game after this.} (13... fxe4 $11 14. Qxe4+ Kf7 15. Qf3+ Nf6 16. Qb3+ (16. c3 $2 Re8+ 17. Kf1 Bxc3 $19) 16... Nd5) ({Predecessor:} 13... fxe4 14. Qxe4+ Kf7 15. Qf3+ Nf6 16. Qb3+ Nd5 17. Qf3+ Nf6 18. Qb3+ Nd5 19. Qf3+ Qf6 20. Qxf6+ Bxf6 {0-1 (41) Martinovic,S (2483)-Arenas Garrido,D (2333) Kemer 2009}) 14. Bxc6 $18 {[%emt 0:03:02]} Be6 {[%emt 0:15:05] Against Qd5} 15. O-O {[%emt 0:24:06]} (15. Bxa8 $142 Bxa1 16. Bb7) 15... Rc8 $2 {[%emt 0:04:00]} (15... Ne5 16. Qe2 (16. Qh5 Bf7 $14) 16... Rc8) 16. c3 {[%emt 0:12:45][%cal Bc2c3,Bc3d4][%mdl 32]} Qd6 {[%emt 0:04:22][%csl Gg4][%cal Rd6h2] [#]} 17. Nf4 $1 {[%emt 0:03:16] White is clearly winning.} Rxc6 {[%emt 0:11:57]} (17... Bxf2+ 18. Rxf2) 18. cxd4 {[%emt 0:00:17] Ba3 is the strong threat.} Rfc8 {[%emt 0:01:17]} 19. Nc3 {[%emt 0:04:02]} Bc4 {[%emt 0:01:36]} 20. d3 {[%emt 0:02:14]} Bf7 {[%emt 0:00:04]} 21. h3 {[%emt 0:00:51][%cal Bh2h3,Bh3g4][%mdl 32]} g5 {[%emt 0:01:03]} 22. hxg4 {[%emt 0:00:13]} Rxc3 {[%emt 0:00:15]} 23. Ne2 {[%emt 0:00:52]} Rc2 {[%emt 0:00:15]} 24. Bxg5 {[%emt 0:01:08]} Bd5 {[%emt 0:00:26]} 25. Qg3 {[%emt 0:00:41]} Qc6 {[%emt 0:00:41]} 26. Nf4 {[%emt 0:02:14] Weighted Error Value: White=0.24 (precise) /Black=0.67} 1-0